bitfinex/quotes_BTCUSD_20230901
["timestamp","ask_amount","ask_price","bid_price","bid_amount"]
[1693579989486,0.03472243,25788.0,25785.0,0.3]
[1693579989667,0.03472243,25788.0,25786.0,0.11360124]
[1693579989909,0.03472243,25788.0,25786.0,0.028]
[1693579990155,0.03472243,25788.0,25787.0,0.07289766]
[1693579990360,0.03472243,25788.0,25786.0,0.028]
[1693579990565,0.03472243,25789.0,25786.0,0.57548678]
[1693579990735,0.03472243,25789.0,25788.0,0.1604]
[1693579990943,0.05472243,25789.0,25788.0,0.1604]
[1693579991577,0.18286085,25799.0,25793.0,0.02]
[1693579991750,0.05472243,25802.0,25797.0,0.02]
[1693579991954,0.05472243,25802.0,25796.0,0.06]
[1693579991955,0.03472243,25798.0,25796.0,0.3]
[1693579992281,0.34326085,25801.0,25794.0,0.2588]
[1693579992282,0.03472243,25795.0,25794.0,0.2588]
[1693579993231,0.03472243,25795.0,25794.0,0.35075484]
[1693579993406,0.03472243,25795.0,25794.0,0.33357373]
[1693579993844,0.78569951,25795.0,25788.0,0.2009]
[1693579994069,0.05472243,25792.0,25791.0,0.2452]
[1693579994260,0.03472243,25790.0,25788.0,0.2452]
[1693579994397,0.03472243,25790.0,25784.0,0.0778363]
[1693579994598,0.03472243,25790.0,25785.0,0.2652]
[1693579995037,0.03472243,25790.0,25788.0,0.002]
[1693579995718,0.03472243,25790.0,25786.0,0.3]
[1693579995938,0.03472243,25790.0,25788.0,0.155159]
[1693579996737,0.03435588,25790.0,25788.0,0.155159]
[1693579996938,0.44144266,25792.0,25788.0,0.155159]
[1693579997091,0.03435588,25790.0,25788.0,0.155159]
[1693579997316,0.03435588,25790.0,25788.0,0.192159]
[1693579998150,0.05435588,25789.0,25788.0,0.192159]
[1693579998350,0.76360509,25789.0,25788.0,0.037]
[1693579998572,0.7661541,25789.0,25788.0,0.037]
[1693579998775,0.80628639,25789.0,25788.0,0.037]
[1693579999175,0.80628639,25789.0,25783.0,0.2421]
[1693579999349,0.01935588,25783.0,25782.0,0.03129793]
[1693579999551,0.01935588,25783.0,25780.0,0.23233697]
[1693579999731,0.01935588,25783.0,25782.0,0.15518]
[1693579999943,0.05435588,25784.0,25782.0,0.15518]
[1693580000349,0.05435588,25784.0,25783.0,0.09250114]
[1693580001593,0.05435588,25785.0,25782.0,0.24800626]
[1693580001792,0.05435588,25785.0,25783.0,0.037]
[1693580002609,0.05435588,25785.0,25782.0,0.15518]
[1693580002861,0.05435588,25789.0,25784.0,0.1604]
[1693580003080,0.05435588,25789.0,25785.0,0.45483471]
[1693580003289,0.05435588,25789.0,25785.0,0.70673471]
[1693580003489,0.03435588,25789.0,25785.0,0.70673471]
[1693580003732,0.01935588,25790.0,25788.0,0.1604]
[1693580005632,0.035,25793.0,25789.0,0.3]
[1693580005841,0.035,25793.0,25789.0,0.54174882]
[1693580006054,0.035,25793.0,25789.0,0.64451411]
[1693580006275,0.17994914,25792.0,25789.0,0.64451411]
[1693580006478,0.035,25791.0,25789.0,0.5576]
[1693580006688,0.035,25791.0,25789.0,0.2576]
[1693580007095,0.035,25791.0,25789.0,0.35312184]
[1693580008141,0.015,25790.0,25789.0,0.2576]
[1693580008413,0.21412579,25790.0,25786.0,0.5576]
[1693580008679,0.015,25790.0,25789.0,0.037]
[1693580009066,0.015,25790.0,25787.0,0.3]
[1693580009340,0.015,25790.0,25789.0,0.037]
[1693580010034,0.015,25790.0,25787.0,0.3]
[1693580010874,0.015,25790.0,25788.0,0.08590169]
[1693580012154,0.015,25790.0,25788.0,0.12290169]
[1693580013019,0.16,25793.0,25788.0,0.037]
[1693580013020,0.78330223,25789.0,25788.0,0.037]
[1693580013435,0.58248678,25789.0,25788.0,0.037]
[1693580013645,0.76767881,25789.0,25788.0,0.037]
[1693580013879,0.60727881,25789.0,25788.0,0.037]
[1693580014290,0.60727881,25789.0,25783.0,0.3]
[1693580014496,0.015,25785.0,25783.0,0.3]
[1693580015598,0.035,25792.0,25784.0,0.58748678]
[1693580015821,0.035,25790.0,25788.0,0.09249878]
[1693580016026,0.035,25790.0,25788.0,0.24733349]
[1693580016464,0.035,25790.0,25788.0,0.09249878]
[1693580017283,0.035,25790.0,25788.0,0.08749878]
[1693580017942,0.035,25790.0,25788.0,0.12449878]
[1693580018165,0.035,25790.0,25788.0,0.037]
[1693580018166,0.21661626,25790.0,25788.0,0.037]
[1693580018378,0.42208678,25789.0,25788.0,0.037]
[1693580018591,0.58239677,25789.0,25788.0,0.037]
[1693580018808,0.58248678,25789.0,25788.0,0.037]
[1693580019052,1.20358678,25789.0,25788.0,0.037]
[1693580019263,0.015,25779.0,25778.0,0.09282626]
[1693580019471,0.015,25779.0,25777.0,0.09282626]
[1693580019681,0.015,25779.0,25777.0,0.23206565]
[1693580020106,0.015,25780.0,25778.0,0.09282626]
[1693580020304,0.015,25779.0,25778.0,0.09282626]
[1693580020928,0.015,25779.0,25778.0,0.23206565]
[1693580021134,0.015,25779.0,25778.0,0.30456948]
[1693580021336,0.015,25779.0,25778.0,0.69649976]
[1693580021762,0.018,25779.0,25778.0,0.73349976]
[1693580022174,0.018,25779.0,25778.0,0.88871976]
[1693580022985,0.018,25779.0,25778.0,0.79585029]
[1693580023194,0.40508678,25779.0,25778.0,0.72338967]
[1693580023417,0.40508678,25779.0,25778.0,0.037]
[1693580023418,0.58548678,25779.0,25778.0,0.037]
[1693580023632,0.67448678,25779.0,25778.0,0.037]
[1693580023841,0.67526678,25779.0,25778.0,0.037]
[1693580024085,0.88630948,25779.0,25778.0,0.037]
[1693580024286,0.81718948,25779.0,25778.0,0.037]
[1693580024491,0.60248678,25779.0,25775.0,0.2321324]
[1693580024698,0.035,25776.0,25774.0,0.2321324]
[1693580024901,0.42208678,25775.0,25774.0,0.2321324]
[1693580025103,0.42208678,25775.0,25774.0,0.09289301]
[1693580025361,0.42208678,25775.0,25770.0,0.06634637]
[1693580025362,0.035,25771.0,25770.0,0.06634637]
[1693580025569,0.035,25771.0,25769.0,0.019796]
[1693580025570,0.6007,25770.0,25769.0,0.019796]
[1693580025779,0.98778678,25770.0,25769.0,0.019796]
[1693580025997,1.00778678,25770.0,25769.0,0.019796]
[1693580028095,0.6796852,25770.0,25769.0,0.019796]
[1693580028302,0.6196852,25770.0,25769.0,0.019796]
[1693580028510,0.42208678,25770.0,25769.0,0.019796]
[1693580028925,0.52208678,25770.0,25769.0,0.019796]
[1693580029168,0.55308678,25770.0,25769.0,0.021796]
[1693580030010,0.55308678,25770.0,25769.0,0.09001526]
[1693580030227,0.73060275,25770.0,25769.0,0.021796]
[1693580030670,0.87960275,25770.0,25769.0,0.019796]
[1693580031098,0.87960275,25770.0,25769.0,0.041796]
[1693580031099,0.88160275,25770.0,25769.0,0.041796]
[1693580031501,0.70208678,25770.0,25769.0,0.019796]
[1693580031637,0.87558698,25770.0,25769.0,0.027796]
[1693580031840,1.10778678,25770.0,25769.0,0.027796]
[1693580032041,1.17480678,25770.0,25769.0,0.027796]
[1693580032250,1.18236678,25770.0,25769.0,0.027796]
[1693580032465,1.20012678,25770.0,25769.0,0.027796]
[1693580032669,1.22658678,25770.0,25769.0,0.027796]
[1693580032874,1.22706678,25770.0,25769.0,0.027796]
[1693580033134,1.22508678,25770.0,25769.0,0.027796]
[1693580033348,1.22508678,25770.0,25768.0,0.019796]
[1693580033349,0.6007,25769.0,25768.0,0.019796]
[1693580033562,1.50667343,25769.0,25768.0,0.019796]
[1693580033759,1.79287343,25769.0,25768.0,0.019796]
[1693580033965,1.56460678,25769.0,25768.0,0.019796]
[1693580034171,1.57750678,25769.0,25768.0,0.019796]
[1693580034396,1.78436746,25769.0,25768.0,0.019796]
[1693580034600,1.79222746,25769.0,25768.0,0.019796]
[1693580034826,2.01977411,25769.0,25768.0,0.019796]
[1693580035050,1.81399343,25769.0,25768.0,0.019796]
[1693580035247,1.77871343,25769.0,25768.0,0.019796]
[1693580035510,1.87223343,25769.0,25768.0,0.022796]
[1693580035708,0.6007,25765.0,25764.0,0.019796]
[1693580035858,1.16818678,25765.0,25764.0,0.019796]
[1693580036060,1.28746678,25765.0,25764.0,0.019796]
[1693580036264,1.30768678,25765.0,25764.0,0.019796]
[1693580036463,1.31032678,25765.0,25764.0,0.019796]
[1693580036698,1.30774678,25765.0,25764.0,0.019796]
[1693580036903,1.32620378,25765.0,25764.0,0.019796]
[1693580037114,1.79242378,25765.0,25764.0,0.019796]
[1693580037309,1.94860378,25765.0,25764.0,0.019796]
[1693580037508,1.94860378,25765.0,25762.0,0.01989699]
[1693580037509,0.6007,25763.0,25762.0,0.01989699]
[1693580037743,1.30858678,25763.0,25762.0,0.01989699]
[1693580037948,1.75300678,25763.0,25762.0,0.01989699]
[1693580038132,1.58932678,25763.0,25762.0,0.01989699]
[1693580038361,1.56706678,25763.0,25762.0,0.01989699]
[1693580038716,1.55842678,25763.0,25762.0,0.01989699]
[1693580038913,1.55158678,25763.0,25762.0,0.01989699]
[1693580039116,1.55506678,25763.0,25762.0,0.01989699]
[1693580039453,1.75262029,25763.0,25762.0,0.02089699]
[1693580039663,1.58854678,25763.0,25762.0,0.02089699]
[1693580039860,1.59580678,25763.0,25762.0,0.02089699]
[1693580040087,1.59358678,25763.0,25762.0,0.02089699]
[1693580040308,1.40418678,25763.0,25762.0,0.02089699]
[1693580040529,1.40418678,25763.0,25762.0,0.24743233]
[1693580040530,0.61848678,25763.0,25762.0,0.24743233]
[1693580040689,0.45808678,25763.0,25762.0,0.09259762]
[1693580040889,0.61848678,25763.0,25762.0,0.09259762]
[1693580041093,0.82553014,25763.0,25762.0,0.02089699]
[1693580041494,0.78953014,25763.0,25762.0,0.01989699]
[1693580041696,0.82553014,25763.0,25762.0,0.02089699]
[1693580041900,0.214905,25762.0,25761.0,0.18439699]
[1693580042101,0.60199178,25762.0,25761.0,0.18439699]
[1693580042309,0.42208678,25762.0,25761.0,0.18439699]
[1693580042889,0.42208678,25762.0,25761.0,0.25587307]
[1693580043096,0.035,25762.0,25761.0,0.18439699]
[1693580043467,0.035,25762.0,25761.0,0.257588]
[1693580043671,0.035,25762.0,25761.0,0.18439699]
[1693580043672,0.42208678,25762.0,25761.0,0.18439699]
[1693580043847,0.035,25762.0,25761.0,0.18439699]
[1693580044263,0.059,25762.0,25761.0,0.18639699]
[1693580044460,0.059,25762.0,25761.0,0.27278549]
[1693580044668,0.035,25762.0,25761.0,0.27078549]
[1693580045089,0.61820943,25762.0,25761.0,0.19939699]
[1693580045301,0.77860943,25762.0,25761.0,0.19939699]
[1693580045540,0.75895736,25762.0,25761.0,0.015]
[1693580046147,1.26278452,25762.0,25761.0,0.015]
[1693580046355,1.20942678,25762.0,25761.0,0.015]
[1693580046565,1.63097343,25762.0,25761.0,0.015]
[1693580046819,1.63205343,25762.0,25761.0,0.015]
[1693580046995,1.60691343,25762.0,25761.0,0.015]
[1693580047204,1.61405343,25762.0,25761.0,0.015]
[1693580047401,0.5407,25761.0,25760.0,0.019796]
[1693580047606,0.94778678,25761.0,25760.0,0.019796]
[1693580047806,0.51262678,25761.0,25760.0,0.019796]
[1693580048096,0.48208678,25761.0,25760.0,0.019796]
[1693580048305,0.88778678,25761.0,25760.0,0.019796]
[1693580048636,0.91078678,25761.0,25760.0,0.021796]
[1693580048748,0.97696678,25761.0,25760.0,0.021796]
[1693580048955,1.15168148,25761.0,25760.0,0.016796]
[1693580049272,0.65746476,25761.0,25760.0,0.016796]
[1693580049896,0.44508678,25761.0,25760.0,0.10506343]
[1693580050092,0.42208678,25761.0,25760.0,0.10037803]
[1693580050294,0.44508678,25761.0,25760.0,0.016796]
[1693580050679,0.60548678,25761.0,25760.0,0.016796]
[1693580050882,1.05554967,25761.0,25760.0,0.014796]
[1693580051159,1.17032967,25761.0,25760.0,0.016796]
[1693580051359,1.19206967,25761.0,25760.0,0.016796]
[1693580051566,1.17916967,25761.0,25760.0,0.016796]
[1693580051766,1.17898967,25761.0,25760.0,0.016796]
[1693580052003,1.17754967,25761.0,25760.0,0.016796]
[1693580052204,1.17820967,25761.0,25760.0,0.016796]
[1693580052407,1.17736967,25761.0,25760.0,0.016796]
[1693580052608,1.16584967,25761.0,25760.0,0.016796]
[1693580052815,1.15732967,25761.0,25760.0,0.016796]
[1693580053028,1.33856003,25761.0,25760.0,0.016796]
[1693580053231,1.25726003,25761.0,25760.0,0.016796]
[1693580053860,1.17940967,25761.0,25760.0,0.016796]
[1693580054201,1.17922967,25761.0,25760.0,0.016796]
[1693580054402,1.17784967,25761.0,25760.0,0.016796]
[1693580054625,1.34249921,25761.0,25760.0,0.016796]
[1693580054860,1.33031921,25761.0,25760.0,0.016796]
[1693580055022,1.32929921,25761.0,25760.0,0.016796]
[1693580055224,1.32713921,25761.0,25760.0,0.016796]
[1693580055514,1.32635921,25761.0,25760.0,0.016796]
[1693580055689,1.32491921,25761.0,25760.0,0.016796]
[1693580055918,1.32611921,25761.0,25760.0,0.016796]
[1693580056121,1.32593921,25761.0,25760.0,0.016796]
[1693580056237,1.32695921,25761.0,25760.0,0.016796]
[1693580056436,0.64588967,25761.0,25760.0,0.016796]
[1693580056642,0.81992578,25761.0,25760.0,0.016796]
[1693580058113,0.42548967,25761.0,25760.0,0.016796]
[1693580058371,0.42548967,25761.0,25760.0,0.08982164]
[1693580059710,0.42548967,25761.0,25760.0,0.08522399]
[1693580060273,0.03840289,25761.0,25760.0,0.016796]
[1693580060734,0.01440289,25761.0,25760.0,0.10843928]
[1693580060948,0.03940289,25761.0,25760.0,0.11043928]
[1693580061375,0.01440289,25761.0,25760.0,0.10843928]
[1693580061912,0.01440289,25761.0,25760.0,0.09364328]
[1693580063128,0.01640289,25761.0,25760.0,0.11064328]
[1693580063742,0.01640289,25761.0,25760.0,0.017]
[1693580063743,1.31830284,25761.0,25760.0,0.017]
[1693580063961,1.37486949,25761.0,25760.0,0.017]
[1693580064173,1.37420949,25761.0,25760.0,0.017]
[1693580064384,1.37498949,25761.0,25760.0,0.017]
[1693580064617,1.37498949,25761.0,25758.0,0.01989699]
[1693580064618,0.48010289,25759.0,25758.0,0.01989699]
[1693580064854,0.88718967,25759.0,25758.0,0.01989699]
[1693580065065,0.96368967,25759.0,25758.0,0.01989699]
[1693580065273,0.42148967,25759.0,25758.0,0.01989699]
[1693580065509,0.40148967,25759.0,25758.0,0.01989699]
[1693580065915,0.42148967,25759.0,25758.0,0.01989699]
[1693580066217,0.42148967,25759.0,25758.0,0.10610711]
[1693580066218,0.40148967,25759.0,25758.0,0.10610711]
[1693580066467,0.40548967,25759.0,25758.0,0.12410711]
[1693580066991,0.40148967,25759.0,25758.0,0.01989699]
[1693580067414,0.40248967,25759.0,25758.0,0.02289699]
[1693580067819,0.40148967,25759.0,25758.0,0.01989699]
[1693580068024,0.40548967,25759.0,25758.0,0.03789699]
[1693580068231,0.40548967,25759.0,25758.0,0.12026095]
[1693580068851,0.57889809,25759.0,25758.0,0.03789699]
[1693580069057,0.75929809,25759.0,25758.0,0.03789699]
[1693580069262,0.98758967,25759.0,25758.0,0.01989699]
[1693580069478,1.26927705,25759.0,25758.0,0.01989699]
[1693580069676,0.01440289,25756.0,25755.0,0.21738998]
[1693580069882,0.39648967,25756.0,25755.0,0.21738998]
[1693580070098,0.00940289,25755.0,25754.0,0.019796]
[1693580070304,0.57688967,25755.0,25754.0,0.019796]
[1693580070720,0.74970928,25755.0,25754.0,0.019796]
[1693580071351,1.05116967,25755.0,25754.0,0.019796]
[1693580071559,1.05974967,25755.0,25754.0,0.019796]
[1693580071762,1.06802967,25755.0,25754.0,0.019796]
[1693580071971,1.06802967,25755.0,25753.0,0.019796]
[1693580071972,0.16940289,25754.0,25753.0,0.019796]
[1693580072191,0.00940289,25744.0,25743.0,0.26319699]
[1693580072418,0.55688967,25744.0,25743.0,0.01989699]
[1693580072599,0.39648967,25744.0,25743.0,0.01989699]
[1693580073220,0.58503575,25744.0,25743.0,0.01989699]
[1693580073425,0.74543575,25744.0,25743.0,0.01989699]
[1693580073641,0.06940289,25739.0,25738.0,0.09226669]
[1693580073850,0.00940289,25737.0,25736.0,0.01989699]
[1693580074064,0.80218967,25737.0,25736.0,0.01989699]
[1693580074266,0.82218967,25737.0,25736.0,0.01989699]
[1693580074684,1.94192621,25737.0,25736.0,0.01989699]
[1693580074893,2.01116621,25737.0,25736.0,0.01989699]
[1693580075120,2.24788621,25737.0,25736.0,0.01989699]
[1693580075333,2.25406621,25737.0,25736.0,0.01989699]
[1693580075546,2.24920621,25737.0,25736.0,0.01989699]
[1693580075779,2.402638,25737.0,25736.0,0.01989699]
[1693580075987,2.387338,25737.0,25736.0,0.01989699]
[1693580076193,2.397838,25737.0,25736.0,0.02189699]
[1693580076399,2.44336732,25737.0,25736.0,0.02189699]
[1693580076616,0.04940289,25735.0,25730.0,0.00024845]
[1693580076845,1.04258967,25735.0,25730.0,0.00024845]
[1693580077066,2.66121286,25735.0,25730.0,0.00024845]
[1693580077272,2.97029286,25735.0,25730.0,0.00024845]
[1693580077512,3.01866782,25735.0,25730.0,0.00024845]
[1693580077719,2.66365286,25735.0,25730.0,0.00024845]
[1693580077923,2.68549286,25735.0,25730.0,0.00024845]
[1693580078127,2.53885286,25735.0,25730.0,0.00024845]
[1693580078340,2.53279286,25735.0,25730.0,0.00024845]
[1693580078557,2.54347286,25735.0,25730.0,0.00024845]
[1693580078824,2.5241539,25735.0,25730.0,0.00024845]
[1693580079026,2.51506714,25735.0,25730.0,0.00024845]
[1693580079232,2.41628621,25735.0,25730.0,0.00024845]
[1693580079435,2.58553609,25735.0,25730.0,0.00024845]
[1693580079653,2.60305609,25735.0,25730.0,0.00024845]
[1693580079869,2.42636621,25735.0,25730.0,0.00024845]
[1693580080102,2.55844365,25735.0,25730.0,0.00024845]
[1693580080300,2.59768365,25735.0,25730.0,0.00024845]
[1693580080507,2.08177734,25735.0,25730.0,0.00024845]
[1693580080724,2.08177734,25735.0,25734.0,0.11384838]
[1693580080725,1.55249734,25735.0,25734.0,0.11384838]
[1693580080945,0.39648967,25735.0,25734.0,0.11384838]
[1693580081160,0.43248967,25735.0,25734.0,0.11484838]
[1693580081801,0.43248967,25735.0,25734.0,0.02089699]
[1693580082031,0.036,25735.0,25734.0,0.06089699]
[1693580082251,0.00940289,25739.0,25738.0,0.04]
[1693580082467,0.00940289,25739.0,25738.0,0.19483471]
[1693580082699,0.00940289,25741.0,25740.0,0.08]
[1693580082906,0.00940289,25741.0,25740.0,0.25483471]
[1693580083124,1.12916083,25741.0,25740.0,0.1]
[1693580083549,1.12916083,25741.0,25740.0,0.18131122]
[1693580084071,1.12916083,25741.0,25740.0,0.02]
[1693580084279,1.15816083,25741.0,25740.0,0.103]
[1693580084488,0.03840289,25741.0,25740.0,0.25783471]
[1693580084710,0.03840289,25741.0,25740.0,0.103]
[1693580085536,0.00940289,25741.0,25740.0,0.1]
[1693580085736,0.01040289,25741.0,25740.0,0.11]
[1693580085940,0.01040289,25741.0,25740.0,0.18221434]
[1693580086270,0.00940289,25741.0,25740.0,0.16871582]
[1693580086515,0.00940289,25742.0,25741.0,0.06]
[1693580086730,1.12907898,25742.0,25741.0,0.04]
[1693580087136,1.51616576,25742.0,25741.0,0.04]
[1693580088446,0.20687903,25741.0,25740.0,0.11]
[1693580088686,1.7136419,25741.0,25740.0,0.01]
[1693580088916,1.77816576,25741.0,25740.0,0.01]
[1693580089125,0.00940289,25737.0,25736.0,0.2452]
[1693580089371,0.00940289,25735.0,25734.0,0.07989699]
[1693580089575,0.00940289,25737.0,25734.0,0.07989699]
[1693580089783,0.00940289,25739.0,25738.0,0.06]
[1693580089993,0.00940289,25739.0,25738.0,0.1]
[1693580090844,0.39648967,25739.0,25737.0,0.02]
[1693580091080,0.01140289,25739.0,25738.0,0.023]
[1693580091535,0.01140289,25739.0,25738.0,0.11312473]
[1693580091779,0.01140289,25739.0,25738.0,0.023]
[1693580092011,0.62051971,25739.0,25738.0,0.023]
[1693580092242,0.62051971,25739.0,25734.0,0.01989699]
[1693580092243,0.00940289,25735.0,25734.0,0.01989699]
[1693580092473,0.39648967,25735.0,25734.0,0.01989699]
[1693580092677,0.63848967,25735.0,25734.0,0.01989699]
[1693580092896,0.39648967,25735.0,25734.0,0.01989699]
[1693580093113,0.41648967,25735.0,25734.0,0.01989699]
[1693580093338,0.39648967,25735.0,25734.0,0.01989699]
[1693580094019,0.39748967,25735.0,25734.0,0.02989699]
[1693580094246,0.01040289,25735.0,25734.0,0.02989699]
[1693580094859,0.39748967,25735.0,25734.0,0.02989699]
[1693580095479,0.39648967,25735.0,25734.0,0.09988995]
[1693580095691,0.002,25735.0,25734.0,0.2757317]
[1693580095941,0.01140289,25735.0,25734.0,0.12089699]
[1693580096374,0.01140289,25735.0,25734.0,0.10089699]
[1693580096550,0.00940289,25735.0,25734.0,0.07989699]
[1693580096826,0.02,25743.0,25734.0,0.07989699]
[1693580096827,0.07368,25743.0,25734.0,0.07989699]
[1693580097025,0.00940289,25737.0,25735.0,0.17483471]
[1693580097226,0.00940289,25737.0,25735.0,0.02]
[1693580097677,0.00940289,25736.0,25735.0,0.02]
[1693580097941,0.00940289,25736.0,25734.0,0.13389699]
[1693580098391,0.00940289,25737.0,25736.0,0.02]
[1693580099014,1.12913544,25737.0,25736.0,0.02]
[1693580099482,1.12913544,25737.0,25735.0,0.1]
[1693580099686,0.01040289,25737.0,25736.0,0.008]
[1693580099895,1.13013694,25737.0,25736.0,0.008]
[1693580100102,1.12073405,25737.0,25736.0,0.008]
[1693580100321,0.75720405,25737.0,25736.0,0.108]
[1693580100543,0.00940289,25741.0,25739.0,0.04]
[1693580100753,0.00940289,25744.0,25740.0,0.39683471]
[1693580100960,0.00940289,25745.0,25741.0,0.02]
[1693580101369,0.00940289,25744.0,25742.0,0.15483471]
[1693580101575,0.00940289,25744.0,25741.0,0.21483471]
[1693580101785,0.00940289,25744.0,25742.0,0.15317714]
[1693580102000,0.00940289,25744.0,25740.0,0.02]
[1693580102001,0.55748339,25744.0,25740.0,0.02]
[1693580102210,0.00940289,25740.0,25737.0,0.2347]
[1693580102428,0.00940289,25740.0,25738.0,0.02]
[1693580102642,0.03848665,25744.0,25738.0,0.02]
[1693580102643,0.00940289,25742.0,25738.0,0.02]
[1693580102862,0.00940289,25742.0,25740.0,0.04]
[1693580103073,0.00940289,25743.0,25740.0,0.04]
[1693580103290,0.00940289,25744.0,25741.0,0.04]
[1693580103500,0.00940289,25746.0,25743.0,0.1]
[1693580103714,0.00940289,25746.0,25743.0,0.08]
[1693580103932,0.00940289,25746.0,25743.0,0.04]
[1693580104794,0.00940289,25745.0,25740.0,0.06]
[1693580105034,0.00940289,25741.0,25737.0,0.390152]
[1693580105244,0.00940289,25739.0,25737.0,0.390152]
[1693580105892,0.39648967,25739.0,25737.0,0.390152]
[1693580106099,0.00940289,25738.0,25737.0,0.2347]
[1693580106313,0.00940289,25738.0,25737.0,0.2717]
[1693580106537,0.00940289,25738.0,25737.0,0.037]
[1693580106756,0.00940289,25738.0,25736.0,0.941]
[1693580107182,0.00940289,25738.0,25737.0,0.07486438]
[1693580108024,0.39648967,25738.0,25737.0,0.07486438]
[1693580108566,0.00940289,25738.0,25736.0,0.941]
[1693580109093,0.00940289,25738.0,25737.0,0.006]
[1693580109422,0.00940289,25739.0,25737.0,0.08418329]
[1693580109641,0.39648967,25739.0,25737.0,0.08418329]
[1693580110306,0.39648967,25738.0,25737.0,0.08418329]
[1693580110497,0.00940289,25737.0,25736.0,0.006]
[1693580110728,0.39648967,25737.0,25736.0,0.006]
[1693580110947,0.00940289,25737.0,25736.0,0.006]
[1693580111164,0.00940289,25737.0,25734.0,0.01989699]
[1693580111606,0.01240289,25738.0,25737.0,0.11990912]
[1693580111811,0.39948967,25738.0,25737.0,0.11990912]
[1693580112019,0.39648967,25738.0,25737.0,0.08290912]
[1693580112437,0.39648967,25738.0,25737.0,0.07790912]
[1693580112967,0.39948967,25738.0,25737.0,0.037]
[1693580113184,0.59171087,25738.0,25737.0,0.037]
[1693580113391,0.01240289,25738.0,25737.0,0.037]
[1693580114012,0.003,25738.0,25737.0,0.037]
[1693580114835,0.00940289,25739.0,25737.0,0.037]
[1693580115048,0.04,25748.0,25738.0,0.02]
[1693580115049,0.00940289,25742.0,25738.0,0.02]
[1693580115246,8.9e-07,25742.0,25739.0,0.15483471]
[1693580115463,8.9e-07,25742.0,25739.0,0.14983471]
[1693580115693,8.9e-07,25742.0,25738.0,0.2523]
[1693580115901,8.9e-07,25742.0,25739.0,0.3]
[1693580116527,0.1511,25747.0,25739.0,0.3]
[1693580116745,0.012,25742.0,25740.0,0.15483471]
[1693580117036,0.15059388,25753.0,25742.0,0.02]
[1693580117242,0.78112828,25752.0,25743.0,0.19483471]
[1693580117452,0.09059388,25755.0,25744.0,0.98908678]
[1693580117657,0.24292479,25754.0,25747.0,0.242]
[1693580117872,0.09059388,25755.0,25748.0,0.3]
[1693580118099,0.2429136,25754.0,25749.0,0.54192149]
[1693580118314,0.2429136,25754.0,25750.0,0.3]
[1693580118519,0.2264847,25756.0,25750.0,0.45483471]
[1693580118723,0.24290843,25755.0,25751.0,0.15483471]
[1693580119346,0.24290843,25755.0,25750.0,0.3]
[1693580119548,0.24290843,25755.0,25750.0,0.44983471]
[1693580119759,0.09059388,25757.0,25750.0,0.44983471]
[1693580119964,0.09059388,25757.0,25751.0,0.15483471]
[1693580119965,0.24290522,25756.0,25751.0,0.15483471]
[1693580120833,0.24290522,25756.0,25752.0,0.44708678]
[1693580121047,0.09059388,25759.0,25753.0,0.15483471]
[1693580121257,0.24288561,25758.0,25753.0,0.15483471]
[1693580121468,0.24288561,25758.0,25754.0,0.2344]
[1693580121664,0.09059388,25759.0,25754.0,0.38923471]
[1693580121884,0.09059388,25759.0,25754.0,0.54458471]
[1693580122507,0.09059388,25760.0,25755.0,0.15483471]
[1693580122715,0.09059388,25761.0,25755.0,0.15483471]
[1693580122921,0.23260173,25760.0,25755.0,0.15483471]
[1693580123137,0.32319561,25760.0,25755.0,0.15483471]
[1693580123345,0.09059388,25760.0,25755.0,0.15483471]
[1693580123550,0.47768066,25761.0,25755.0,0.15483471]
[1693580123751,0.61357148,25761.0,25755.0,0.15483471]
[1693580124157,0.2264847,25761.0,25755.0,0.15483471]
[1693580124355,0.09059388,25761.0,25756.0,0.3]
[1693580124599,0.09059388,25761.0,25756.0,0.45483471]
[1693580125054,0.2264847,25762.0,25757.0,0.54192149]
[1693580125256,0.09059388,25763.0,25757.0,0.80392149]
[1693580125458,0.09059388,25763.0,25758.0,0.3]
[1693580125806,0.09059388,25764.0,25758.0,0.84192149]
[1693580126240,0.09059388,25764.0,25759.0,0.2378]
[1693580126455,0.2461847,25765.0,25759.0,0.2378]
[1693580126673,0.11029388,25765.0,25759.0,0.2378]
[1693580126900,0.0197,25765.0,25762.0,0.242]
[1693580127112,0.0197,25765.0,25762.0,0.39683471]
[1693580127322,0.11029388,25767.0,25762.0,0.62908678]
[1693580127529,0.10529388,25767.0,25763.0,0.15483471]
[1693580127739,0.0147,25767.0,25763.0,0.15483471]
[1693580127944,0.09059388,25769.0,25764.0,0.68708678]
[1693580128181,0.2963,25770.0,25765.0,0.39683471]
[1693580128386,0.09059388,25772.0,25768.0,0.02]
[1693580128601,0.2264847,25773.0,25769.0,0.15483471]
[1693580128805,0.2264847,25773.0,25770.0,0.3]
[1693580128806,0.09059388,25773.0,25770.0,0.3]
[1693580129012,0.09059388,25773.0,25770.0,0.45483471]
[1693580129432,0.09059388,25773.0,25770.0,0.3]
[1693580129640,0.31707859,25774.0,25770.0,0.3]
[1693580129641,0.09059388,25774.0,25770.0,0.3]
[1693580129858,0.09059388,25774.0,25770.0,0.45483471]
[1693580130055,0.09059388,25774.0,25770.0,0.3]
[1693580130478,0.09059388,25774.0,25771.0,0.07927246]
[1693580130688,0.38708678,25773.0,25771.0,0.07927246]
[1693580130892,0.29998582,25769.0,25768.0,0.155258]
[1693580131510,0.29998582,25769.0,25768.0,0.455258]
[1693580132125,0.29998582,25769.0,25768.0,0.479258]
[1693580132334,0.29998582,25769.0,25768.0,0.179258]
[1693580132542,0.29998582,25769.0,25768.0,0.024]
[1693580132743,0.32327249,25769.0,25764.0,0.35999911]
[1693580132951,0.32327249,25769.0,25768.0,0.037]
[1693580134170,0.29998582,25769.0,25768.0,0.037]
[1693580134379,1.25219388,25776.0,25766.0,0.242]
[1693580134602,0.40708678,25775.0,25768.0,0.024]
[1693580134801,0.49768066,25775.0,25769.0,0.15483471]
[1693580134979,0.40708678,25775.0,25769.0,0.15483471]
[1693580135285,0.029,25774.0,25769.0,0.15483471]
[1693580135489,0.65491864,25773.0,25766.0,0.002]
[1693580135700,0.65491864,25773.0,25770.0,0.01207469]
[1693580135701,0.64908678,25773.0,25770.0,0.01207469]
[1693580135945,0.40708678,25773.0,25764.0,0.3]